bitfinex-derivatives/quotes_BNBF0:USTF0_20250101
["timestamp","ask_amount","ask_price","bid_price","bid_amount"]
[1735744515515,1.04199792,707.97,706.88,1.05843221]
[1735744515712,0.26023018,707.96,706.88,1.05843221]
[1735744516108,1.04199792,707.94,706.88,1.05843221]
[1735744516307,0.26023018,707.93,706.88,1.05843221]
[1735744517416,1.04199792,707.92,706.91,1.05843221]
[1735744517611,0.26026426,707.91,706.91,1.05843221]
[1735744518422,1.04199792,707.81,706.82,1.05843221]
[1735744518615,0.26026426,707.8,706.82,1.05843221]
[1735744519416,1.30226218,707.8,706.8,1.05843221]
[1735744519612,0.26026426,707.79,706.8,1.05843221]
[1735744520114,0.26026912,707.78,706.8,1.05843221]
[1735744520312,0.26026912,707.77,706.8,1.05843221]
[1735744520513,0.26026912,707.76,706.8,1.05843221]
[1735744520717,1.04199792,707.79,706.79,1.05843221]
[1735744520914,0.26026505,707.78,706.79,1.05843221]
[1735744521618,0.26026505,707.78,706.81,1.05843221]
[1735744521818,0.26026505,707.77,706.81,1.05843221]
[1735744522115,1.04199792,707.82,706.81,1.05843221]
[1735744522116,0.26026505,707.76,706.81,1.05843221]
[1735744522320,0.26026505,707.75,706.81,1.05843221]
[1735744522520,0.26026505,707.74,706.81,1.05843221]
[1735744522721,1.04199792,707.79,706.81,1.05843221]
[1735744522920,0.26026737,707.78,706.81,1.05843221]
[1735744524425,0.26026737,707.77,706.81,1.05843221]
[1735744524620,0.26026737,707.76,706.81,1.05843221]
[1735744524834,0.26026737,707.75,706.81,1.05843221]
[1735744525124,0.26026737,707.74,706.81,1.05843221]
[1735744525326,1.04199792,707.79,706.78,1.05843221]
[1735744525521,0.26027106,707.78,706.78,1.05843221]
[1735744526623,0.26027106,707.77,706.78,1.05843221]
[1735744526823,0.26027106,707.76,706.78,1.05843221]
[1735744527023,0.26027106,707.75,706.78,1.05843221]
[1735744527224,0.26027106,707.74,706.78,1.05843221]
[1735744527425,0.26027106,707.73,706.8,1.05843221]
[1735744527630,0.26027106,707.72,706.8,1.05843221]
[1735744527825,1.04199792,707.81,706.8,1.05843221]
[1735744527826,0.26027106,707.71,706.8,1.05843221]
[1735744528025,1.04199792,707.81,706.8,1.05843221]
[1735744528221,0.26025792,707.8,706.8,1.05843221]
[1735744528620,0.26025792,707.8,706.25,2.1360722]
[1735744528621,0.26025792,707.8,706.83,1.05843221]
[1735744528823,0.26025792,707.79,706.83,1.05843221]
[1735744529025,0.26025792,707.78,706.83,1.05843221]
[1735744529226,0.26025792,707.77,706.83,1.05843221]
[1735744529427,0.26025792,707.76,706.83,1.05843221]
[1735744529629,0.26025792,707.75,706.83,1.05843221]
[1735744529828,0.26025792,707.74,706.83,1.05843221]
[1735744530024,0.26025792,707.73,706.83,1.05843221]
[1735744530224,0.26025792,707.72,706.83,1.05843221]
[1735744530428,0.26025792,707.71,706.83,1.05843221]
[1735744530627,0.26026661,707.7,706.83,1.05843221]
[1735744530827,0.26026661,707.69,706.81,1.05843221]
[1735744531024,1.04199792,707.8,706.81,1.05843221]
[1735744531025,0.26026661,707.68,706.81,1.05843221]
[1735744531227,0.26026661,707.67,706.81,1.05843221]
[1735744531427,1.04199792,707.8,706.81,1.05843221]
[1735744531628,0.26027154,707.79,706.81,1.05843221]
[1735744532224,1.30226946,707.79,706.81,1.05843221]
[1735744532430,0.26027154,707.78,706.81,1.05843221]
[1735744533231,0.26027154,707.78,706.28,2.1360722]
[1735744533232,1.04199792,707.81,706.84,1.05843221]
[1735744533427,0.26026297,707.8,706.84,1.05843221]
[1735744534430,1.30226089,707.8,706.83,1.05843221]
[1735744534630,0.26026297,707.79,706.83,1.05843221]
[1735744535427,1.04199792,707.78,706.83,1.05843221]
[1735744535631,0.26026297,707.77,706.83,1.05843221]
[1735744535931,0.26028595,707.76,706.83,1.05843221]
[1735744536130,0.26028595,707.75,706.83,1.05843221]
[1735744536333,0.26028595,707.74,706.83,1.05843221]
[1735744536532,1.04199792,707.73,706.78,1.05843221]
[1735744536830,0.26028303,707.72,706.78,1.05843221]
[1735744537834,0.26028303,707.72,706.79,1.05843221]
[1735744538031,0.26028303,707.71,706.79,1.05843221]
[1735744538233,0.26028303,707.7,706.79,1.05843221]
[1735744538428,0.26028303,707.69,706.79,1.05843221]
[1735744538734,0.26027722,707.68,706.82,1.05843221]
[1735744538934,0.26027722,707.67,706.82,1.05843221]
[1735744539129,0.26027722,707.66,706.82,1.05843221]
[1735744539333,0.26027722,707.65,706.82,1.05843221]
[1735744539531,1.04199792,707.75,706.82,1.05843221]
[1735744539732,0.2602761,707.74,706.82,1.05843221]
[1735744539934,1.30227402,707.74,706.81,1.05843221]
[1735744540135,0.2602761,707.73,706.81,1.05843221]
[1735744541244,0.26027463,707.72,706.81,1.05843221]
[1735744541538,0.26027463,707.71,706.81,1.05843221]
[1735744541737,0.26027463,707.7,706.81,1.05843221]
[1735744542038,1.04199792,707.75,706.81,1.05843221]
[1735744542039,0.26027463,707.69,706.81,1.05843221]
[1735744542237,0.26027463,707.68,706.81,1.05843221]
[1735744542438,0.26027463,707.67,706.81,1.05843221]
[1735744542650,0.26027463,707.66,706.81,1.05843221]
[1735744542938,0.26027463,707.65,706.81,1.05843221]
[1735744543139,1.04199792,707.75,706.81,1.05843221]
[1735744543439,0.26027679,707.74,706.81,1.05843221]
[1735744543650,0.26027679,707.74,706.8,1.05843221]
[1735744543840,1.04199792,707.77,706.8,1.05843221]
[1735744544036,0.26027499,707.76,706.8,1.05843221]
[1735744544554,1.04199792,707.77,706.8,1.05843221]
[1735744544740,1.30227083,707.76,706.79,1.05843221]
[1735744544940,0.26027291,707.75,706.79,1.05843221]
[1735744545340,1.04199792,707.76,706.79,1.05843221]
[1735744545543,0.26028061,707.75,706.79,1.05843221]
[1735744545842,0.26028061,707.75,706.8,1.05843221]
[1735744546741,0.26027943,707.74,706.8,1.05843221]
[1735744546941,0.26027943,707.73,706.78,1.05843221]
[1735744547140,0.26027943,707.72,706.78,1.05843221]
[1735744547340,0.26027943,707.71,706.78,1.05843221]
[1735744547540,0.26027943,707.7,706.78,1.05843221]
[1735744547844,0.26027943,707.69,706.78,1.05843221]
[1735744548042,0.26027943,707.68,706.8,1.05843221]
[1735744548246,0.26027943,707.67,706.8,1.05843221]
[1735744548443,0.26027943,707.66,706.8,1.05843221]
[1735744548635,1.04199792,707.74,706.8,1.05843221]
[1735744549543,1.04199792,707.73,706.84,1.05843221]
[1735744550439,1.04199792,707.78,706.77,1.05843221]
[1735744550836,0.26029302,707.77,706.77,1.05843221]
[1735744551036,1.73674614,707.77,706.77,1.05843221]
[1735744551344,0.26029302,707.76,706.77,1.05843221]
[1735744551838,0.2603134,707.75,706.68,1.05843221]
[1735744552542,0.26031044,707.74,706.68,1.05843221]
[1735744552743,0.26031044,707.73,706.68,1.05843221]
[1735744552939,1.30230836,707.72,706.65,1.05843221]
[1735744553143,1.04199792,707.72,706.65,1.05843221]
[1735744553839,1.04199792,707.73,706.64,1.05843221]
[1735744554941,1.47645312,707.77,706.66,1.05843221]
[1735744555848,1.47645312,707.77,706.48,1.05843221]
[1735744557049,1.47645312,707.77,706.43,1.05843221]
[1735744558053,1.47645312,707.77,706.38,1.05843221]
[1735744558347,1.47645312,707.77,706.39,0.28312971]
[1735744561861,0.26035182,707.76,706.39,0.28312971]
[1735744562855,1.04199792,707.58,706.41,1.05843221]
[1735744563055,0.26035182,707.57,706.41,1.05843221]
[1735744563653,1.47696487,707.56,706.41,1.05843221]
[1735744563856,0.26035182,707.55,706.41,1.05843221]
[1735744564061,1.04199792,707.53,706.39,0.28312971]
[1735744564254,0.26041281,707.52,706.39,0.28312971]
[1735744565456,0.26041281,707.51,706.39,0.28312971]
[1735744565658,0.26041281,707.5,706.39,0.28312971]
[1735744565858,0.26041281,707.49,706.39,0.28312971]
[1735744566059,0.26041281,707.48,706.39,0.28312971]
[1735744566275,1.47696487,707.56,706.39,0.28312971]
[1735744566276,0.26041281,707.47,706.39,0.28312971]
[1735744566460,0.26041281,707.46,706.39,0.28312971]
[1735744566662,1.04199792,707.64,706.39,0.28312971]
[1735744566859,1.7373418,707.63,706.39,0.28312971]
[1735744567053,1.47695442,707.63,706.39,0.28312971]
[1735744567261,0.26038076,707.62,706.39,0.28312971]
[1735744567561,0.26037968,707.61,706.39,0.28312971]
[1735744567757,0.26037968,707.6,706.39,0.28312971]
[1735744567961,0.26037968,707.59,706.39,0.28312971]
[1735744568162,0.26037968,707.58,706.39,0.28312971]
[1735744568357,0.26037968,707.57,706.39,0.28312971]
[1735744568558,0.26037968,707.56,706.39,0.28312971]
[1735744568760,0.26037968,707.55,706.39,0.28312971]
[1735744568961,0.26037968,707.54,706.39,0.28312971]
[1735744569163,0.26037968,707.53,706.39,0.28312971]
[1735744569565,0.26037968,707.52,706.39,0.28312971]
[1735744569758,1.47695442,707.63,706.39,0.28312971]
[1735744569961,0.26034776,707.62,706.4,1.05843221]
[1735744570762,0.26034776,707.61,706.4,1.05843221]
[1735744570964,0.26034776,707.6,706.39,0.28312971]
[1735744571163,1.47673506,707.75,706.39,0.28312971]
[1735744571164,0.26034776,707.59,706.39,0.28312971]
[1735744571357,1.47673506,707.75,706.39,0.28312971]
[1735744571561,0.26032296,707.74,706.39,0.28312971]
[1735744572362,0.26032296,707.74,706.44,1.05843221]
[1735744573363,0.26032296,707.74,706.47,1.05843221]
[1735744574466,1.47673506,707.75,706.47,1.05843221]
[1735744574669,0.26032076,707.74,706.47,1.05843221]
[1735744574860,0.26032076,707.74,706.39,0.28312971]
[1735744574861,0.26032076,707.74,706.46,1.05843221]
[1735744576061,0.26032076,707.74,706.39,0.28312971]
[1735744576062,0.26032076,707.74,706.44,1.05843221]
[1735744576567,0.26032076,707.74,706.45,0.28310566]
[1735744577164,1.47673506,707.75,706.45,0.28310566]
[1735744577364,0.26032323,707.74,706.45,1.34153787]
[1735744578671,0.26032323,707.74,706.45,0.28310566]
[1735744579569,1.47673506,707.75,706.45,0.28310566]
[1735744579762,1.47673506,707.75,706.45,1.34153787]
[1735744580870,1.47673506,707.75,706.45,0.28310566]
[1735744589564,0.26033099,707.74,706.45,0.28310566]
[1735744590763,0.26033099,707.74,706.46,1.05843221]
[1735744591768,0.26033099,707.74,706.5,1.05843221]
[1735744592973,1.47673506,707.75,706.48,1.05843221]
[1735744593174,0.26034312,707.74,706.48,1.05843221]
[1735744593666,0.26034312,707.74,706.49,0.28308964]
[1735744593876,1.04199792,707.68,706.61,1.05843221]
[1735744594072,0.26034312,707.67,706.61,1.05843221]
[1735744595173,0.26034312,707.66,706.61,1.05843221]
[1735744595373,0.26034312,707.65,706.61,1.05843221]
[1735744595571,1.04199792,707.69,706.61,1.05843221]
[1735744595777,0.26031461,707.68,706.61,1.05843221]
[1735744596181,0.26031461,707.68,706.63,1.05843221]
[1735744596477,0.26031461,707.67,706.63,1.05843221]
[1735744596673,0.26031461,707.66,706.63,1.05843221]
[1735744596881,0.26031461,707.65,706.63,1.05843221]
[1735744597075,0.26031461,707.64,706.63,1.05843221]
[1735744597270,0.60809861,707.97,706.63,1.05843221]
[1735744597271,0.26031461,707.63,706.63,1.05843221]
[1735744597584,0.26031461,707.62,706.63,1.05843221]
[1735744597772,1.04199792,707.77,706.63,1.05843221]
[1735744597976,0.2602986,707.76,706.63,1.05843221]
[1735744598179,0.26029949,707.75,706.63,1.05843221]
[1735744598378,0.26029949,707.74,706.63,1.05843221]
[1735744598578,0.26029949,707.73,706.63,1.05843221]
[1735744598773,0.26029949,707.72,706.63,1.05843221]
[1735744599079,0.60806729,708.23,706.49,0.28308964]
[1735744599080,0.26029949,707.71,706.65,1.05843221]
[1735744599278,0.26029949,707.7,706.65,1.05843221]
[1735744599475,1.04199792,707.79,706.65,1.05843221]
[1735744599675,0.26029473,707.78,706.65,1.05843221]
[1735744600072,1.30229265,707.78,706.66,1.05843221]
[1735744600276,0.26029473,707.77,706.66,1.05843221]
[1735744601079,0.26029473,707.77,706.61,1.05843221]
[1735744601278,0.26029473,707.76,706.61,1.05843221]
[1735744601477,0.26029473,707.75,706.61,1.05843221]
[1735744601676,1.47640614,707.81,706.61,1.05843221]
[1735744601874,0.260291,707.8,706.61,1.05843221]
[1735744602276,0.260291,707.8,706.63,1.05843221]
[1735744604583,0.260291,707.8,706.61,1.05843221]
[1735744605682,0.260291,707.79,706.64,1.05843221]
[1735744605882,1.04199792,707.87,706.64,1.05843221]
[1735744606084,0.26027995,707.86,706.64,1.05843221]
[1735744606288,1.04199792,707.87,706.64,1.05843221]
[1735744606590,0.2602801,707.86,706.64,1.05843221]
[1735744606779,1.47632263,707.9,706.59,1.05843221]
[1735744606981,0.2602774,707.89,706.59,1.05843221]
[1735744608884,1.47632263,707.9,706.59,1.05843221]
[1735744609186,0.26027197,707.89,706.58,1.05843221]
[1735744609387,1.04199792,707.99,706.58,1.05843221]
[1735744609587,0.26024259,707.98,706.58,1.05843221]
[1735744609985,1.04199792,707.99,706.58,1.05843221]
[1735744610491,1.47621303,708.01,706.68,1.05843221]
[1735744610884,0.26024677,708.0,706.68,1.05843221]
[1735744611486,0.26025151,707.99,706.68,1.05843221]
[1735744611687,0.26025151,707.98,706.58,1.05843221]
[1735744611888,1.47621303,708.01,706.58,1.05843221]
[1735744612185,0.2602486,708.0,706.58,1.05843221]
[1735744613189,1.47621303,708.01,706.58,1.05843221]
[1735744613684,1.47621303,708.01,706.56,1.05843221]
[1735744613888,0.26024774,708.0,706.56,1.05843221]
[1735744614391,1.47621303,708.01,706.56,1.05843221]
[1735744614690,1.47621303,708.01,706.54,1.05843221]
[1735744614886,0.26024381,708.0,706.54,1.05843221]
[1735744615090,1.47621303,708.01,706.54,1.05843221]
[1735744615693,1.47621303,708.01,706.58,1.05843221]
[1735744616694,1.47621303,708.01,706.57,1.05843221]
[1735744616894,0.26023753,708.0,706.57,1.05843221]
[1735744617698,0.26023753,708.0,706.54,1.05843221]
[1735744618999,0.26023753,708.0,706.64,1.05843221]
[1735744619397,1.47621303,708.01,706.65,0.28302554]
[1735744619591,0.2602444,708.0,706.65,0.28302554]
[1735744619794,0.2602444,708.0,706.65,1.34145775]
[1735744621202,0.2602444,708.0,706.66,1.05843221]
[1735744621393,0.26024231,707.99,706.66,1.05843221]
[1735744621594,0.26024231,707.98,706.66,1.05843221]
[1735744621795,0.26024231,707.97,706.66,1.05843221]
[1735744621998,1.47621303,708.01,706.66,1.05843221]
[1735744621999,0.26024231,708.0,706.66,1.05843221]
[1735744622200,0.26024231,707.99,706.66,1.05843221]
[1735744622394,1.47621303,708.01,706.66,1.05843221]
[1735744622395,0.26024231,707.98,706.66,1.05843221]
[1735744622599,0.26024231,707.97,706.65,0.28302554]
[1735744622793,0.26024231,707.96,706.65,0.28302554]
[1735744622999,0.26024231,707.95,706.65,0.28302554]
[1735744623201,0.26024231,707.94,706.65,0.28302554]
[1735744623413,0.26024231,707.93,706.65,0.28302554]
[1735744623598,1.30224023,707.92,706.72,1.05843221]
[1735744623802,0.26024231,707.91,706.72,1.05843221]
[1735744624099,0.26026484,707.9,706.72,1.05843221]
[1735744624403,0.26026484,707.89,706.72,1.05843221]
[1735744624601,0.26026484,707.88,706.72,1.05843221]
[1735744624802,0.26026484,707.87,706.72,1.05843221]
[1735744625004,0.26026484,707.86,706.72,1.05843221]
[1735744625205,0.26026484,707.85,706.73,1.05843221]
[1735744625503,1.04199792,707.88,706.73,1.05843221]
[1735744626205,1.47611911,708.01,706.66,1.05843221]
[1735744626409,0.26023125,708.0,706.66,1.05843221]
[1735744627105,0.26023125,708.0,706.74,1.05843221]
[1735744627505,0.26023125,707.99,706.65,0.28302554]
[1735744627702,1.47596259,708.09,706.65,0.28302554]
[1735744627906,0.26021277,708.08,706.65,0.28302554]
[1735744628506,0.26021277,708.08,706.78,1.05635486]
[1735744629809,1.47596259,708.09,706.79,1.05635486]
[1735744630011,0.260224,708.08,706.79,1.05635486]
[1735744630909,1.31868145,708.08,706.76,1.05635486]
[1735744631110,0.260224,708.07,706.76,1.05635486]
[1735744631811,1.05845745,708.08,706.76,1.05635486]
[1735744632012,1.05845745,708.08,706.65,0.28302554]
[1735744632013,0.26021624,708.07,706.79,1.05635486]
[1735744632209,0.26021624,708.06,706.79,1.05635486]
[1735744632410,0.26021624,708.05,706.79,1.05635486]
[1735744632610,0.26021624,708.04,706.79,1.05635486]
[1735744632812,0.26021624,708.03,706.79,1.05635486]
[1735744633021,0.26021624,708.02,706.8,1.05635486]
[1735744633310,0.26021624,708.01,706.8,1.05635486]
[1735744633512,0.26021624,708.0,706.8,1.05635486]
[1735744633711,0.26021624,707.99,706.8,1.05635486]
[1735744634012,0.26021624,707.98,706.8,1.05635486]
[1735744634209,0.26021624,707.97,706.96,1.05635486]
[1735744634414,0.26019269,707.96,706.96,1.05635486]
[1735744634622,0.26019269,708.02,706.96,1.05635486]
[1735744634812,0.26019269,708.01,706.96,1.05635486]
[1735744635010,0.26019269,708.0,706.96,1.05635486]
[1735744635212,0.26019269,707.99,706.95,1.05635486]
[1735744635411,1.05845745,708.08,706.95,1.05635486]
[1735744635412,0.26019269,707.98,706.95,1.05635486]
[1735744635613,0.26019269,707.97,706.95,1.05635486]
[1735744635809,1.05845745,708.08,706.95,1.05635486]
[1735744636014,0.26017193,708.07,706.95,1.05635486]
[1735744636617,0.26017193,708.07,706.98,1.05635486]
[1735744636916,0.26017193,708.06,706.98,1.05635486]
[1735744637215,0.26018378,708.05,706.98,1.05635486]
[1735744637416,1.47586348,708.12,706.94,1.05635486]
[1735744637417,0.26018378,708.04,706.94,1.05635486]
[1735744637710,0.26018241,708.03,706.94,1.05635486]
[1735744637910,0.26018241,708.02,706.94,1.05635486]
[1735744638112,0.26018241,708.01,706.94,1.05635486]
[1735744638320,0.26018241,708.0,706.94,1.05635486]
[1735744638516,0.26018241,707.99,706.94,1.05635486]
[1735744638815,0.26018241,707.98,706.94,1.05635486]
[1735744639016,0.26018241,707.97,706.94,1.05635486]
[1735744639216,0.26018241,707.96,706.94,1.05635486]
[1735744639518,0.26018241,707.95,706.94,1.05635486]
[1735744639718,0.26019222,708.11,706.94,1.05635486]
[1735744639912,0.26019222,708.1,706.94,1.05635486]
[1735744640115,0.26019222,708.09,706.93,1.05635486]
[1735744640315,0.26019222,708.08,706.93,1.05635486]
[1735744640512,0.26019222,708.07,706.93,1.05635486]
[1735744640714,0.26019222,708.06,706.93,1.05635486]
[1735744640919,0.26019222,708.05,706.93,1.05635486]
[1735744641218,0.26019222,708.04,706.91,1.05635486]
[1735744641420,0.26019222,708.03,706.91,1.05635486]
[1735744641620,0.26019222,708.02,706.91,1.05635486]
[1735744641815,0.26019222,708.01,706.91,1.05635486]
[1735744642012,0.26019222,708.0,706.91,1.05635486]
[1735744642211,0.2601962,707.99,706.91,1.05635486]
[1735744642417,0.2601962,707.98,706.91,1.05635486]
[1735744642621,0.2601962,707.97,706.92,1.05635486]
[1735744642917,0.2601962,707.96,706.92,1.05635486]
[1735744643116,0.2601962,707.95,706.92,1.05635486]
[1735744643322,0.2601962,707.94,706.92,1.05635486]
[1735744643520,0.2601962,707.93,706.92,1.05635486]
[1735744643721,1.05845745,708.08,706.92,1.05635486]
[1735744643921,0.26019065,708.07,706.91,1.05635486]
[1735744644117,0.26019065,708.06,706.91,1.05635486]
[1735744644322,0.26019065,708.05,706.91,1.05635486]
[1735744644625,0.26019065,708.04,706.91,1.05635486]
[1735744644823,0.26019065,708.03,706.91,1.05635486]
[1735744645025,0.26019065,708.02,706.91,1.05635486]
[1735744645324,0.26019065,708.01,706.97,1.05635486]
[1735744645517,0.26018758,708.0,706.97,1.05635486]
[1735744645722,0.26018758,707.99,706.97,1.05635486]
[1735744646021,0.26018758,707.98,706.97,1.05635486]
[1735744646219,0.26018758,707.97,706.97,1.05635486]
[1735744646423,0.26018758,707.96,706.96,1.05635486]
[1735744646622,0.26018758,707.95,706.96,1.05635486]
[1735744646919,1.05845745,708.08,706.96,1.05635486]
[1735744646920,0.26018758,707.94,706.96,1.05635486]
[1735744647121,0.26018758,707.93,706.96,1.05635486]
[1735744647322,0.26018758,708.07,706.96,1.05635486]
[1735744647529,0.26018188,708.06,706.97,1.05635486]
[1735744647720,0.26018188,708.08,706.97,1.05635486]
[1735744647919,0.26018188,708.07,706.97,1.05635486]
[1735744648124,0.26018188,708.06,706.97,1.05635486]
[1735744648325,0.26018188,708.05,706.97,1.05635486]
[1735744648521,0.26018188,708.04,706.96,1.05635486]
[1735744648725,0.26018188,708.03,706.96,1.05635486]
[1735744648924,0.26018188,708.02,706.96,1.05635486]
[1735744649124,1.05845745,708.09,706.96,1.05635486]
[1735744649322,0.26015248,708.08,706.96,1.05635486]
[1735744649521,0.26015248,708.08,706.66,0.72142513]
[1735744649522,0.26015248,708.08,707.01,1.05635486]
[1735744649727,0.26015248,708.07,707.01,1.05635486]
[1735744649922,0.26015248,708.06,707.01,1.05635486]
[1735744650228,0.26015656,708.05,707.01,1.05635486]
[1735744650429,0.26015656,708.04,707.01,1.05635486]
[1735744650730,0.26015656,708.03,707.01,1.05635486]
[1735744651034,0.26015656,708.02,707.01,1.05635486]
[1735744651229,0.26015656,708.01,707.01,1.05635486]
[1735744651531,1.05845745,708.2,707.01,1.05635486]
[1735744651828,0.26016536,708.19,707.01,1.05635486]
[1735744652030,0.26016536,708.19,706.98,1.05635486]
[1735744652629,1.05845745,708.2,706.98,1.05635486]
[1735744652829,0.26016396,708.19,706.98,1.05635486]
[1735744653124,1.05845745,708.18,706.98,1.05635486]
[1735744653526,0.26016514,708.17,706.98,1.05635486]
[1735744653924,1.05845745,708.18,706.98,1.05635486]
[1735744654331,1.05845745,708.18,706.66,0.72142513]
[1735744654332,1.05845745,708.18,706.99,1.05635486]
[1735744655524,1.47568095,708.27,706.81,1.05635486]
[1735744655729,0.26016329,708.26,706.81,1.05635486]
[1735744656231,0.26016329,708.26,706.82,0.28295747]
[1735744658030,0.2601834,708.25,706.82,0.28295747]
[1735744658228,0.2601834,708.24,706.82,0.28295747]
[1735744658429,0.2601834,708.23,706.82,0.28295747]
[1735744658631,0.2601834,708.22,706.82,0.28295747]
[1735744658834,0.2601834,708.21,706.82,0.28295747]
[1735744659027,0.2601834,708.2,706.82,0.28295747]
[1735744659227,0.2601834,708.19,706.82,0.28295747]
[1735744659429,0.2601834,708.18,706.82,0.28295747]
[1735744659645,0.2601834,708.17,706.82,0.28295747]
[1735744659831,0.2601834,708.16,706.82,0.28295747]
[1735744660035,1.47570181,708.19,706.82,0.28295747]
[1735744660235,0.26018017,708.18,706.82,0.28295747]
[1735744660631,0.26017951,708.17,706.82,0.28295747]
[1735744660836,1.47570181,708.19,706.82,0.28295747]
[1735744661033,0.26017949,708.18,706.82,0.28295747]
[1735744661235,0.26017949,708.18,706.87,1.05635486]
[1735744661530,1.47570181,708.19,706.87,1.05635486]
[1735744662435,1.05845745,708.21,706.87,1.05635486]
[1735744662637,1.05845745,708.23,706.9,1.05635486]
[1735744663640,2.5341019,708.28,706.96,1.05635486]
[1735744663840,0.260153,708.27,706.96,1.05635486]
[1735744664738,1.05845745,708.17,707.06,1.05635486]
[1735744664938,0.260153,708.16,707.06,1.05635486]
[1735744665145,1.05845745,708.17,707.06,1.05635486]
[1735744665440,1.05845745,708.16,707.07,1.05635486]
[1735744666137,1.47564445,708.28,706.82,0.28295747]
[1735744666138,1.05845745,708.21,707.0,1.05635486]
[1735744666338,0.26015694,708.2,707.0,1.05635486]
[1735744667237,1.31861439,708.2,707.01,1.05635486]
[1735744667439,0.26015694,708.19,707.01,1.05635486]
[1735744668534,1.05845745,708.17,706.99,1.05635486]
[1735744668941,0.2601555,708.16,706.99,1.05635486]
[1735744669239,1.05845745,708.17,706.99,1.05635486]
[1735744669240,0.26015702,708.15,706.99,1.05635486]
[1735744669442,0.26015702,708.14,706.99,1.05635486]
[1735744669634,0.26015702,708.13,706.99,1.05635486]
[1735744669935,0.26015702,708.12,707.05,1.05635486]
[1735744670140,1.05845745,708.16,707.05,1.05635486]
[1735744670341,0.2601574,708.15,707.05,1.05635486]
[1735744671042,1.31861485,708.15,707.05,1.05635486]
[1735744671244,0.26016296,708.14,707.05,1.05635486]
[1735744672044,1.31862041,708.14,707.04,1.05635486]
[1735744672237,0.26016296,708.13,707.04,1.05635486]
[1735744673041,1.05845745,708.1,707.01,1.05635486]
[1735744673339,0.26016296,708.09,707.01,1.05635486]
[1735744673842,0.26017172,708.08,707.01,1.05635486]
[1735744674040,0.26017172,708.07,707.01,1.05635486]
[1735744674240,1.05845745,708.1,707.01,1.05635486]
[1735744674545,0.26016622,708.09,707.04,1.05635486]
[1735744674844,0.26016622,708.08,707.04,1.05635486]
[1735744675044,1.05845745,708.11,707.04,1.05635486]
[1735744675045,0.26016622,708.07,707.04,1.05635486]
[1735744675354,0.26016622,708.06,707.05,1.05635486]
[1735744675543,0.26016622,708.05,707.05,1.05635486]
[1735744675843,0.26016622,708.04,707.05,1.05635486]
[1735744676039,0.26016622,708.03,707.05,1.05635486]
[1735744676239,1.05845745,708.01,707.13,1.05635486]
[1735744676445,0.26016822,708.0,707.13,1.05635486]
[1735744677243,0.26016841,707.99,707.15,1.05635486]
[1735744677946,1.05845745,708.0,707.15,1.05635486]
[1735744678140,0.26016891,707.99,707.15,1.05635486]
[1735744678545,1.31862636,707.99,707.15,1.05635486]
[1735744678844,0.26016891,707.98,707.15,1.05635486]
[1735744679244,0.26016257,707.97,707.15,1.05635486]
[1735744679439,0.26016257,707.96,707.15,1.05635486]
[1735744679640,0.26016257,707.95,707.15,1.05635486]
[1735744679844,0.26016257,707.94,707.15,1.05635486]
[1735744680040,1.05845745,707.99,707.15,1.05635486]
[1735744680243,0.26017326,707.98,707.17,1.05635486]
[1735744680446,0.26017326,707.97,707.17,1.05635486]
[1735744680748,0.26017326,707.96,707.17,1.05635486]
[1735744680945,0.26017326,707.95,707.17,1.05635486]
[1735744681147,0.26018506,707.94,707.17,1.05635486]
[1735744681340,0.26018506,707.93,707.16,1.05635486]
[1735744681544,0.26018506,707.92,707.16,1.05635486]
[1735744681744,0.26018506,707.91,707.16,1.05635486]
[1735744681945,1.05845745,707.97,707.16,1.05635486]
[1735744682249,0.2601824,707.96,707.16,1.05635486]
[1735744682746,0.2601824,707.96,707.13,1.05635486]
[1735744682747,1.05845745,707.95,707.13,1.05635486]
[1735744682952,0.2601824,707.94,707.13,1.05635486]
[1735744683750,0.26018885,707.93,707.08,1.05635486]
[1735744683947,0.26018885,707.94,707.08,1.05635486]
[1735744684149,1.05845745,707.95,707.08,1.05635486]
[1735744684150,0.26018885,707.93,707.08,1.05635486]
[1735744684345,0.26018727,707.92,707.08,1.05635486]
[1735744684549,1.05845745,707.95,707.08,1.05635486]
[1735744684850,0.26018756,707.94,707.08,1.05635486]
[1735744685048,0.26018756,707.93,707.08,1.05635486]
[1735744685345,0.26018756,707.92,707.08,1.05635486]
[1735744685552,1.05845745,707.96,707.08,1.05635486]
[1735744686850,1.05845745,707.96,706.82,0.28295747]
[1735744686851,1.05845745,708.04,707.02,1.05635486]
[1735744687749,0.26018063,708.03,707.02,1.05635486]
[1735744688152,1.05845745,708.04,707.02,1.05635486]
[1735744688347,1.05845745,708.06,707.02,1.05635486]
[1735744688651,0.26018082,708.05,707.02,1.05635486]
[1735744688949,0.26017994,708.04,707.02,1.05635486]
[1735744689151,1.05845745,708.06,707.02,1.05635486]
[1735744689350,0.26018027,708.05,707.02,1.05635486]
[1735744690351,1.31863772,708.05,707.0,1.05635486]
[1735744690549,0.26018027,708.04,707.0,1.05635486]
[1735744691452,1.05845745,708.03,706.99,1.05635486]
[1735744691646,0.2601887,708.02,706.99,1.05635486]
[1735744692850,0.2601887,708.01,706.99,1.05635486]
[1735744693051,0.2601887,708.0,706.99,1.05635486]
[1735744693354,1.05845745,708.02,706.99,1.05635486]